[Event "Late-Titled-Tuesday-Blitz-September-19-2023"]
[Site "Chess.com"]
[Date "2023.09.19"]
[Round "1"]
[White "Msb2"]
[Black "Championnn-9"]
[Result "1-0"]
[WhiteElo "3089"]
[BlackElo "2504"]
[TimeControl "180+1"]
[EndTime "14:04:38 PDT"]
[Termination "Msb2 won by resignation"]

1. d4 {[%clk 0:03:00.9]} 1... Nf6 {[%clk 0:02:59.8]} 2. c4 {[%clk 0:03:01.2]}
2... d6 {[%clk 0:02:58.8]} 3. Nf3 {[%clk 0:03:01.4]} 3... Nbd7 {[%clk
0:02:59.2]} 4. Nc3 {[%clk 0:03:02]} 4... e5 {[%clk 0:02:59.6]} 5. Bg5 {[%clk
0:03:02.8]} 5... Be7 {[%clk 0:02:59.6]} 6. e3 {[%clk 0:03:03.3]} 6... O-O {[%clk
0:02:59.5]} 7. Be2 {[%clk 0:03:04]} 7... c6 {[%clk 0:02:59.6]} 8. Qc2 {[%clk
0:03:04.7]} 8... Qc7 {[%clk 0:02:58.9]} 9. O-O {[%clk 0:03:05]} 9... h6 {[%clk
0:02:57.3]} 10. Bh4 {[%clk 0:03:05.1]} 10... Re8 {[%clk 0:02:57]} 11. Rad1
{[%clk 0:03:05.2]} 11... Bf8 {[%clk 0:02:54.6]} 12. h3 {[%clk 0:03:04]} 12... a6
{[%clk 0:02:38.9]} 13. a4 {[%clk 0:03:00.8]} 13... e4 {[%clk 0:02:35.1]} 14. Nd2
{[%clk 0:02:59.4]} 14... d5 {[%clk 0:02:35.1]} 15. Rc1 {[%clk 0:02:58.3]} 15...
b6 {[%clk 0:02:10.7]} 16. cxd5 {[%clk 0:02:56.1]} 16... cxd5 {[%clk 0:02:07.5]}
17. Nxd5 {[%clk 0:02:56.2]} 17... Nxd5 {[%clk 0:02:02.3]} 18. Qxc7 {[%clk
0:02:55.7]} 18... Nxc7 {[%clk 0:02:03.2]} 19. Rxc7 {[%clk 0:02:56.3]} 19... Bd6
{[%clk 0:02:01.3]} 20. Rc6 {[%clk 0:02:54.6]} 20... Re6 {[%clk 0:01:59]} 21.
Rfc1 {[%clk 0:02:53.9]} 21... Bb7 {[%clk 0:01:58.1]} 22. R6c2 {[%clk 0:02:54]}
22... g5 {[%clk 0:01:55.1]} 23. Bg3 {[%clk 0:02:53.1]} 23... Bxg3 {[%clk
0:01:55.2]} 24. fxg3 {[%clk 0:02:54]} 24... Nf6 {[%clk 0:01:53.3]} 25. Rc7
{[%clk 0:02:51.3]} 25... Rb8 {[%clk 0:01:53.6]} 26. Bc4 {[%clk 0:02:50.4]} 26...
Bd5 {[%clk 0:01:50]} 27. Rf1 {[%clk 0:02:46.3]} 27... Rf8 {[%clk 0:01:34]} 28.
Rxf6 {[%clk 0:02:38.9]} 28... Bxc4 {[%clk 0:01:26.9]} 29. Rxe6 {[%clk
0:02:38.7]} 29... Bxe6 {[%clk 0:01:27.2]} 30. Nxe4 {[%clk 0:02:39.5]} 30... Kg7
{[%clk 0:01:21]} 31. Nc3 {[%clk 0:02:39.9]} 31... Bb3 {[%clk 0:01:10.1]} 32. Rb7
{[%clk 0:02:38.3]} 32... Re8 {[%clk 0:01:09.8]} 33. Rxb6 {[%clk 0:02:38]} 33...
Bc4 {[%clk 0:01:10.2]} 34. Kf2 {[%clk 0:02:38.2]} 34... h5 {[%clk 0:01:04.7]}
35. e4 {[%clk 0:02:35.3]} 35... g4 {[%clk 0:01:01.8]} 36. hxg4 {[%clk 0:02:35]}
36... hxg4 {[%clk 0:01:02.7]} 37. b4 {[%clk 0:02:32.4]} 37... Rc8 {[%clk
0:01:00]} 38. d5 {[%clk 0:02:32.8]} 38... Bd3 {[%clk 0:00:59.1]} 39. Rc6 {[%clk
0:02:33.3]} 39... Rb8 {[%clk 0:00:58.1]} 40. Ke3 {[%clk 0:02:33.2]} 40... Bf1
{[%clk 0:00:57.3]} 41. Kf2 {[%clk 0:02:31.5]} 41... Bd3 {[%clk 0:00:57]} 42. d6
{[%clk 0:02:29.6]} 42... Rxb4 {[%clk 0:00:57.1]} 43. d7 {[%clk 0:02:30]} 43...
Rd4 {[%clk 0:00:56.8]} 44. Nd5 {[%clk 0:02:30.7]} 44... Rxe4 {[%clk 0:00:54.3]}
45. d8=Q {[%clk 0:02:28.8]} 45... Re2+ {[%clk 0:00:54.4]} 46. Kg1 {[%clk
0:02:29.5]} 1-0

[Event "Late-Titled-Tuesday-Blitz-September-19-2023"]
[Site "Chess.com"]
[Date "2023.09.19"]
[Round "1"]
[White "kuli4ik"]
[Black "Road2GM3000"]
[Result "1-0"]
[WhiteElo "2963"]
[BlackElo "2499"]
[TimeControl "180+1"]
[EndTime "14:04:43 PDT"]
[Termination "kuli4ik won by resignation"]

1. Nf3 {[%clk 0:03:00.9]} 1... d5 {[%clk 0:02:58.7]} 2. g3 {[%clk 0:02:56.1]}
2... Nf6 {[%clk 0:02:58.4]} 3. Bg2 {[%clk 0:02:56.2]} 3... c5 {[%clk 0:02:58.4]}
4. O-O {[%clk 0:02:55.6]} 4... Nc6 {[%clk 0:02:58.9]} 5. d4 {[%clk 0:02:55.3]}
5... cxd4 {[%clk 0:02:57.2]} 6. Nxd4 {[%clk 0:02:55]} 6... Nxd4 {[%clk
0:02:57.2]} 7. Qxd4 {[%clk 0:02:54.7]} 7... e6 {[%clk 0:02:55.2]} 8. c4 {[%clk
0:02:54]} 8... dxc4 {[%clk 0:02:51.5]} 9. Qxc4 {[%clk 0:02:53.5]} 9... Be7
{[%clk 0:02:46.1]} 10. Nc3 {[%clk 0:02:53.2]} 10... O-O {[%clk 0:02:46]} 11. Rd1
{[%clk 0:02:52]} 11... Bd7 {[%clk 0:02:45.7]} 12. Bxb7 {[%clk 0:02:50.4]} 12...
Rb8 {[%clk 0:02:45.9]} 13. Bg2 {[%clk 0:02:48.2]} 13... Rc8 {[%clk 0:02:45.5]}
14. Qa6 {[%clk 0:02:45.1]} 14... Qc7 {[%clk 0:02:44.9]} 15. Bf4 {[%clk
0:02:43.6]} 15... e5 {[%clk 0:02:44.7]} 16. Bg5 {[%clk 0:02:42.2]} 16... Be6
{[%clk 0:02:39.5]} 17. Rac1 {[%clk 0:02:37]} 17... Rfd8 {[%clk 0:02:37]} 18. Nd5
{[%clk 0:02:15.3]} 18... Nxd5 {[%clk 0:01:32.2]} 19. Rxc7 {[%clk 0:01:27.5]}
19... Nxc7 {[%clk 0:01:31.7]} 20. Qxc8 {[%clk 0:01:25.1]} 20... Rxc8 {[%clk
0:01:13]} 21. Bxe7 {[%clk 0:01:24.4]} 21... Bxa2 {[%clk 0:01:13.7]} 22. Rc1
{[%clk 0:01:24.3]} 22... Be6 {[%clk 0:01:08]} 23. Bb7 {[%clk 0:01:19.8]} 1-0

[Event "Late-Titled-Tuesday-Blitz-September-19-2023"]
[Site "Chess.com"]
[Date "2023.09.19"]
[Round "1"]
[White "rychessmaster1"]
[Black "Superfelix"]
[Result "1-0"]
[WhiteElo "2751"]
[BlackElo "2441"]
[TimeControl "180+1"]
[EndTime "14:04:56 PDT"]
[Termination "rychessmaster1 won by resignation"]

1. d4 {[%clk 0:03:00.9]} 1... g6 {[%clk 0:02:58]} 2. e4 {[%clk 0:03:00]} 2... c6
{[%clk 0:02:58.1]} 3. c4 {[%clk 0:02:53.8]} 3... d5 {[%clk 0:02:57.3]} 4. Nc3
{[%clk 0:02:52.1]} 4... dxe4 {[%clk 0:02:57.1]} 5. Nxe4 {[%clk 0:02:53]} 5...
Nf6 {[%clk 0:02:57.3]} 6. Nxf6+ {[%clk 0:02:50.5]} 6... exf6 {[%clk 0:02:58.2]}
7. Nf3 {[%clk 0:02:50.4]} 7... Bg7 {[%clk 0:02:58.5]} 8. Be2 {[%clk 0:02:46.9]}
8... O-O {[%clk 0:02:59.1]} 9. O-O {[%clk 0:02:47.1]} 9... a5 {[%clk 0:02:58.6]}
10. Bf4 {[%clk 0:02:46.3]} 10... Na6 {[%clk 0:02:59.1]} 11. Qd2 {[%clk
0:02:44.5]} 11... Re8 {[%clk 0:02:59.1]} 12. Rad1 {[%clk 0:02:43.9]} 12... Be6
{[%clk 0:02:58]} 13. Rfe1 {[%clk 0:02:38.2]} 13... Nc7 {[%clk 0:02:54.2]} 14.
Bf1 {[%clk 0:02:35.1]} 14... a4 {[%clk 0:02:53.4]} 15. h3 {[%clk 0:02:34.7]}
15... b5 {[%clk 0:02:50.2]} 16. d5 {[%clk 0:02:29.6]} 16... cxd5 {[%clk
0:02:49.3]} 17. cxb5 {[%clk 0:02:30.1]} 17... Rb8 {[%clk 0:02:48]} 18. Qa5
{[%clk 0:02:25]} 18... Nxb5 {[%clk 0:02:42.8]} 19. Qxd8 {[%clk 0:02:24.9]} 19...
Rexd8 {[%clk 0:02:43.7]} 20. Bxb8 {[%clk 0:02:25.1]} 20... Rxb8 {[%clk
0:02:44.6]} 21. Bxb5 {[%clk 0:02:18.7]} 21... Rxb5 {[%clk 0:02:43.8]} 22. Nd4
{[%clk 0:02:19.4]} 22... Rb6 {[%clk 0:02:42.7]} 23. Nxe6 {[%clk 0:02:15.9]}
23... fxe6 {[%clk 0:02:34.7]} 24. Rd4 {[%clk 0:02:16.1]} 24... Ra6 {[%clk
0:02:29.5]} 25. Rb4 {[%clk 0:02:14.2]} 25... e5 {[%clk 0:02:12.8]} 26. Rc1
{[%clk 0:02:13.1]} 26... Ra8 {[%clk 0:02:08.9]} 27. Rc7 {[%clk 0:02:04.1]} 27...
d4 {[%clk 0:02:07.1]} 28. Kf1 {[%clk 0:02:00.4]} 28... f5 {[%clk 0:02:05.5]} 29.
Rbb7 {[%clk 0:01:57.8]} 29... Bf8 {[%clk 0:02:03.7]} 30. Rxh7 {[%clk 0:01:49.5]}
30... e4 {[%clk 0:01:58.9]} 31. Rhd7 {[%clk 0:01:47.4]} 31... d3 {[%clk
0:01:59.2]} 32. f3 {[%clk 0:01:47.4]} 32... Rc8 {[%clk 0:01:56.9]} 33. fxe4
{[%clk 0:01:47.2]} 33... fxe4 {[%clk 0:01:57]} 34. Rbc7 {[%clk 0:01:38.1]} 34...
Rb8 {[%clk 0:01:56.6]} 35. Rc4 {[%clk 0:01:38.5]} 35... Rxb2 {[%clk 0:01:53.1]}
36. Rxe4 {[%clk 0:01:38.8]} 36... d2 {[%clk 0:01:30.9]} 37. Ke2 {[%clk
0:01:34.7]} 37... d1=Q+ {[%clk 0:01:20.4]} 38. Kxd1 {[%clk 0:01:34.8]} 38...
Rxg2 {[%clk 0:01:21]} 39. Rf4 {[%clk 0:01:28.6]} 39... Bh6 {[%clk 0:01:15.7]}
40. Rxa4 {[%clk 0:01:28.3]} 40... Rh2 {[%clk 0:01:14.6]} 41. Ra8+ {[%clk
0:01:27.4]} 41... Bf8 {[%clk 0:01:14.9]} 42. Rdd8 {[%clk 0:01:27.5]} 1-0

[Event "Late-Titled-Tuesday-Blitz-September-19-2023"]
[Site "Chess.com"]
[Date "2023.09.19"]
[Round "1"]
[White "elpatodice"]
[Black "Dhaydon19"]
[Result "0-1"]
[WhiteElo "2379"]
[BlackElo "2669"]
[TimeControl "180+1"]
[EndTime "14:05:01 PDT"]
[Termination "Dhaydon19 won by resignation"]

1. e4 {[%clk 0:02:59.3]} 1... c6 {[%clk 0:03:00.6]} 2. d4 {[%clk 0:02:59]} 2...
d5 {[%clk 0:03:00.8]} 3. Nd2 {[%clk 0:02:59.5]} 3... dxe4 {[%clk 0:03:00.4]} 4.
Nxe4 {[%clk 0:03:00.4]} 4... Nf6 {[%clk 0:03:00.7]} 5. Ng3 {[%clk 0:03:00.4]}
5... g6 {[%clk 0:03:00.3]} 6. Bc4 {[%clk 0:03:00.2]} 6... Bg7 {[%clk 0:02:59.9]}
7. Nf3 {[%clk 0:02:59.1]} 7... O-O {[%clk 0:02:59.2]} 8. O-O {[%clk 0:02:58.9]}
8... Bg4 {[%clk 0:02:58.4]} 9. c3 {[%clk 0:02:59.2]} 9... Nbd7 {[%clk
0:02:57.5]} 10. h3 {[%clk 0:02:59.3]} 10... Bxf3 {[%clk 0:02:57.7]} 11. Qxf3
{[%clk 0:03:00.1]} 11... e5 {[%clk 0:02:58.3]} 12. Rd1 {[%clk 0:02:41.6]} 12...
exd4 {[%clk 0:02:57.8]} 13. Rxd4 {[%clk 0:02:41.6]} 13... Nd5 {[%clk 0:02:53.6]}
14. Rd1 {[%clk 0:02:11.1]} 14... Ne5 {[%clk 0:02:28]} 15. Qe2 {[%clk 0:02:10.6]}
15... Nxc4 {[%clk 0:02:26.3]} 16. Qxc4 {[%clk 0:02:11.5]} 16... Qb6 {[%clk
0:02:26.2]} 17. Qb3 {[%clk 0:02:08]} 17... Rfe8 {[%clk 0:02:23.4]} 18. Qxb6
{[%clk 0:02:05]} 18... axb6 {[%clk 0:02:21.3]} 19. a3 {[%clk 0:02:05]} 19... b5
{[%clk 0:02:20.3]} 20. Kf1 {[%clk 0:01:43.7]} 20... f5 {[%clk 0:02:17.8]} 21.
Ne2 {[%clk 0:01:43.6]} 21... Re4 {[%clk 0:02:17]} 22. f3 {[%clk 0:01:40.3]}
22... Re7 {[%clk 0:02:13.4]} 23. Nf4 {[%clk 0:01:40]} 23... Nb6 {[%clk
0:02:12.7]} 24. Kf2 {[%clk 0:01:35.5]} 24... Nc4 {[%clk 0:02:08.8]} 25. Rb1
{[%clk 0:01:29.5]} 25... Rae8 {[%clk 0:02:04.3]} 26. b3 {[%clk 0:01:26]} 26...
Nb6 {[%clk 0:02:03.4]} 27. Rd3 {[%clk 0:01:21.6]} 27... g5 {[%clk 0:01:54.9]}
28. Nh5 {[%clk 0:01:19.3]} 28... Re2+ {[%clk 0:01:54.8]} 29. Kg1 {[%clk
0:01:11.6]} 29... Re1+ {[%clk 0:01:51.8]} 30. Kh2 {[%clk 0:01:11.9]} 30... Be5+
{[%clk 0:01:47.5]} 31. f4 {[%clk 0:01:12]} 31... gxf4 {[%clk 0:01:44.4]} 32. Rf3
{[%clk 0:01:12.3]} 32... Nd5 {[%clk 0:01:41.6]} 33. c4 {[%clk 0:01:09]} 33...
Ne3 {[%clk 0:01:39.1]} 34. Bxe3 {[%clk 0:01:05.4]} 34... fxe3+ {[%clk
0:01:36.8]} 35. g3 {[%clk 0:00:58.6]} 35... Rxb1 {[%clk 0:01:33.8]} 0-1

[Event "Late-Titled-Tuesday-Blitz-September-19-2023"]
[Site "Chess.com"]
[Date "2023.09.19"]
[Round "1"]
[White "SandwichOSaumon"]
[Black "Mariia89"]
[Result "1-0"]
[WhiteElo "2513"]
[BlackElo "2031"]
[TimeControl "180+1"]
[EndTime "14:05:23 PDT"]
[Termination "SandwichOSaumon won by resignation"]

1. e4 {[%clk 0:02:59.2]} 1... c6 {[%clk 0:03:00.1]} 2. Nc3 {[%clk 0:02:58]} 2...
d5 {[%clk 0:03:00.3]} 3. Nf3 {[%clk 0:02:58.7]} 3... dxe4 {[%clk 0:02:59.8]} 4.
Nxe4 {[%clk 0:02:59.6]} 4... Nf6 {[%clk 0:02:59.8]} 5. Nxf6+ {[%clk 0:02:58]}
5... exf6 {[%clk 0:03:00.4]} 6. Bc4 {[%clk 0:02:58.2]} 6... Be7 {[%clk
0:02:59.2]} 7. d4 {[%clk 0:02:56.5]} 7... Bg4 {[%clk 0:02:56.2]} 8. c3 {[%clk
0:02:53.5]} 8... Nd7 {[%clk 0:02:51.1]} 9. h3 {[%clk 0:02:53.7]} 9... Bh5 {[%clk
0:02:51]} 10. Bf4 {[%clk 0:02:53.4]} 10... Nb6 {[%clk 0:02:51]} 11. Be2 {[%clk
0:02:53.2]} 11... Nd5 {[%clk 0:02:50.3]} 12. Bh2 {[%clk 0:02:52.1]} 12... O-O
{[%clk 0:02:46.7]} 13. O-O {[%clk 0:02:52]} 13... Re8 {[%clk 0:02:46.1]} 14. Re1
{[%clk 0:02:52.2]} 14... Bd6 {[%clk 0:02:45]} 15. Qb3 {[%clk 0:02:35.3]} 15...
Bxh2+ {[%clk 0:02:39]} 16. Kxh2 {[%clk 0:02:36.2]} 16... Qc7+ {[%clk 0:02:36]}
17. Kg1 {[%clk 0:02:36.2]} 17... Nf4 {[%clk 0:02:34.8]} 18. Bd1 {[%clk
0:02:33.1]} 18... Rxe1+ {[%clk 0:02:24]} 19. Nxe1 {[%clk 0:02:32.8]} 19... Re8
{[%clk 0:02:06.8]} 20. Bxh5 {[%clk 0:02:28.4]} 20... Nxh5 {[%clk 0:02:07.7]} 21.
Nf3 {[%clk 0:02:28.6]} 21... Nf4 {[%clk 0:02:06.2]} 22. Re1 {[%clk 0:02:24.8]}
22... Rxe1+ {[%clk 0:02:03.7]} 23. Nxe1 {[%clk 0:02:25.7]} 23... h5 {[%clk
0:01:59.3]} 24. Qd1 {[%clk 0:02:23.7]} 24... Qe7 {[%clk 0:01:56.4]} 25. Kf1
{[%clk 0:02:22.4]} 25... g5 {[%clk 0:01:48.2]} 26. g3 {[%clk 0:02:13.3]} 26...
Nxh3 {[%clk 0:01:36.3]} 27. Qxh5 {[%clk 0:02:12.9]} 27... Qe6 {[%clk 0:01:34.5]}
28. Ng2 {[%clk 0:02:09.8]} 28... g4 {[%clk 0:01:29.1]} 29. Ne3 {[%clk
0:02:05.8]} 29... Ng5 {[%clk 0:01:13.4]} 30. Qxg4 {[%clk 0:01:43.2]} 30... Qxa2
{[%clk 0:01:11]} 31. f4 {[%clk 0:01:37]} 31... Qb1+ {[%clk 0:01:08.8]} 32. Nd1
{[%clk 0:01:36.4]} 32... Qc2 {[%clk 0:01:04.7]} 33. fxg5 {[%clk 0:01:35]} 33...
Qd3+ {[%clk 0:01:04.1]} 34. Qe2 {[%clk 0:01:32.2]} 34... Qxg3 {[%clk 0:01:02.9]}
35. gxf6 {[%clk 0:01:31.9]} 35... Qf4+ {[%clk 0:00:57.7]} 36. Qf2 {[%clk
0:01:27.4]} 36... Kf8 {[%clk 0:00:57.7]} 37. Qxf4 {[%clk 0:01:27.1]} 1-0

[Event "Late-Titled-Tuesday-Blitz-September-19-2023"]
[Site "Chess.com"]
[Date "2023.09.19"]
[Round "1"]
[White "AyMitecK"]
[Black "dorpato"]
[Result "1-0"]
[WhiteElo "2511"]
[BlackElo "2005"]
[TimeControl "180+1"]
[EndTime "14:05:27 PDT"]
[Termination "AyMitecK won by resignation"]

1. e4 {[%clk 0:02:59.7]} 1... c5 {[%clk 0:02:57.6]} 2. Nf3 {[%clk 0:02:59.8]}
2... d6 {[%clk 0:02:55.8]} 3. Bb5+ {[%clk 0:03:00.3]} 3... Bd7 {[%clk
0:02:55.3]} 4. Bxd7+ {[%clk 0:03:00.2]} 4... Qxd7 {[%clk 0:02:56.2]} 5. O-O
{[%clk 0:03:00.7]} 5... Nc6 {[%clk 0:02:55.5]} 6. Re1 {[%clk 0:03:00.7]} 6...
Nf6 {[%clk 0:02:50.2]} 7. c3 {[%clk 0:03:01.6]} 7... e5 {[%clk 0:02:48.7]} 8. d4
{[%clk 0:03:02.5]} 8... cxd4 {[%clk 0:02:48.7]} 9. cxd4 {[%clk 0:03:03.3]} 9...
Be7 {[%clk 0:02:44.5]} 10. Nc3 {[%clk 0:03:01.8]} 10... O-O {[%clk 0:02:34.6]}
11. d5 {[%clk 0:03:00.7]} 11... Nb8 {[%clk 0:02:31.7]} 12. Be3 {[%clk
0:02:57.5]} 12... Na6 {[%clk 0:02:31.5]} 13. Rc1 {[%clk 0:02:55.8]} 13... b6
{[%clk 0:02:30.6]} 14. Nd2 {[%clk 0:02:49.9]} 14... Nc5 {[%clk 0:02:28.7]} 15.
f3 {[%clk 0:02:49.1]} 15... Ne8 {[%clk 0:02:24]} 16. Qe2 {[%clk 0:02:46.2]}
16... g6 {[%clk 0:02:18.6]} 17. b4 {[%clk 0:02:46]} 17... Nb7 {[%clk 0:02:13.6]}
18. Qa6 {[%clk 0:02:39.4]} 18... Ng7 {[%clk 0:02:06]} 19. Nb5 {[%clk 0:02:33.4]}
19... Rfc8 {[%clk 0:01:58.7]} 20. Nb3 {[%clk 0:02:30.1]} 20... f5 {[%clk
0:01:56.8]} 21. Rxc8+ {[%clk 0:02:28.7]} 21... Qxc8 {[%clk 0:01:56.3]} 22. Rc1
{[%clk 0:02:27.7]} 22... Qe8 {[%clk 0:01:28.6]} 23. Nc7 {[%clk 0:02:18]} 23...
Qb8 {[%clk 0:01:24.5]} 24. Nxa8 {[%clk 0:02:16.4]} 24... Qxa8 {[%clk 0:01:25.4]}
25. Rc7 {[%clk 0:02:15.8]} 25... fxe4 {[%clk 0:01:19.2]} 26. fxe4 {[%clk
0:02:13.1]} 26... Qf8 {[%clk 0:00:53.5]} 27. Qxb7 {[%clk 0:02:10.9]} 27... Bh4
{[%clk 0:00:53.2]} 28. g3 {[%clk 0:02:04.4]} 28... Bd8 {[%clk 0:00:37.9]} 29.
Rd7 {[%clk 0:01:56.5]} 29... Nh5 {[%clk 0:00:17.7]} 30. Qc8 {[%clk 0:01:48.7]}
30... Nf6 {[%clk 0:00:15.6]} 31. Rxd8 {[%clk 0:01:47.5]} 1-0

[Event "Late-Titled-Tuesday-Blitz-September-19-2023"]
[Site "Chess.com"]
[Date "2023.09.19"]
[Round "1"]
[White "Nekoo04"]
[Black "Thjop"]
[Result "1-0"]
[WhiteElo "2345"]
[BlackElo "2599"]
[TimeControl "180+1"]
[EndTime "14:05:28 PDT"]
[Termination "Nekoo04 won on time"]

1. d4 {[%clk 0:02:43.3]} 1... Nf6 {[%clk 0:02:59.5]} 2. c4 {[%clk 0:02:38.6]}
2... g6 {[%clk 0:02:59.3]} 3. Nc3 {[%clk 0:02:38.5]} 3... Bg7 {[%clk 0:02:58.7]}
4. e4 {[%clk 0:02:34.1]} 4... d6 {[%clk 0:02:58.4]} 5. Nf3 {[%clk 0:02:33.8]}
5... O-O {[%clk 0:02:58.5]} 6. Be2 {[%clk 0:02:33.9]} 6... e5 {[%clk 0:02:58.5]}
7. d5 {[%clk 0:02:33.2]} 7... a5 {[%clk 0:02:58]} 8. Bg5 {[%clk 0:02:27.5]} 8...
h6 {[%clk 0:02:57.8]} 9. Bh4 {[%clk 0:02:27.8]} 9... Na6 {[%clk 0:02:57.3]} 10.
Nd2 {[%clk 0:02:27.6]} 10... h5 {[%clk 0:02:47.2]} 11. O-O {[%clk 0:02:07.6]}
11... Bh6 {[%clk 0:02:45]} 12. f3 {[%clk 0:02:04.5]} 12... Be3+ {[%clk
0:02:43.3]} 13. Kh1 {[%clk 0:02:01.9]} 13... Kg7 {[%clk 0:02:28.9]} 14. a3
{[%clk 0:01:57.1]} 14... Bd7 {[%clk 0:02:02.1]} 15. Qc2 {[%clk 0:01:17.7]} 1-0

[Event "Late-Titled-Tuesday-Blitz-September-19-2023"]
[Site "Chess.com"]
[Date "2023.09.19"]
[Round "1"]
[White "mishanick"]
[Black "JG-17"]
[Result "1-0"]
[WhiteElo "3118"]
[BlackElo "2508"]
[TimeControl "180+1"]
[EndTime "14:05:32 PDT"]
[Termination "mishanick won by resignation"]

1. d4 {[%clk 0:02:50.1]} 1... d5 {[%clk 0:02:59]} 2. c4 {[%clk 0:02:50.2]} 2...
e6 {[%clk 0:02:59.5]} 3. Nc3 {[%clk 0:02:50.5]} 3... Nf6 {[%clk 0:02:59.7]} 4.
cxd5 {[%clk 0:02:50.5]} 4... exd5 {[%clk 0:02:59.6]} 5. Bg5 {[%clk 0:02:50.9]}
5... c6 {[%clk 0:02:57.4]} 6. e3 {[%clk 0:02:51.5]} 6... Be6 {[%clk 0:02:55.3]}
7. Bd3 {[%clk 0:02:51.7]} 7... Nbd7 {[%clk 0:02:55.5]} 8. Nge2 {[%clk 0:02:49]}
8... h6 {[%clk 0:02:55.8]} 9. Bh4 {[%clk 0:02:49.2]} 9... g5 {[%clk 0:02:56.5]}
10. Bg3 {[%clk 0:02:49.5]} 10... Nh5 {[%clk 0:02:57.2]} 11. Qb3 {[%clk
0:02:48.6]} 11... Qb6 {[%clk 0:02:43.2]} 12. Qc2 {[%clk 0:02:48.9]} 12... Nxg3
{[%clk 0:02:34.7]} 13. Nxg3 {[%clk 0:02:49]} 13... h5 {[%clk 0:02:29.2]} 14. Nf5
{[%clk 0:02:48.7]} 14... h4 {[%clk 0:02:23.4]} 15. h3 {[%clk 0:02:48.6]} 15...
O-O-O {[%clk 0:02:21.6]} 16. a3 {[%clk 0:02:46.6]} 16... Qa5 {[%clk 0:02:14.6]}
17. O-O {[%clk 0:02:38.3]} 17... Qc7 {[%clk 0:01:59]} 18. Rfc1 {[%clk
0:02:31.8]} 18... Bxf5 {[%clk 0:01:34.7]} 19. Bxf5 {[%clk 0:02:31.6]} 19... Bd6
{[%clk 0:01:35.3]} 20. Nxd5 {[%clk 0:02:25.4]} 20... Qa5 {[%clk 0:01:27.6]} 21.
Nc3 {[%clk 0:02:16.2]} 21... Kb8 {[%clk 0:01:23.5]} 22. b4 {[%clk 0:02:16.6]}
22... Qc7 {[%clk 0:01:23.1]} 23. b5 {[%clk 0:02:17.2]} 23... c5 {[%clk
0:01:13.8]} 24. Nd5 {[%clk 0:02:16.8]} 24... Qa5 {[%clk 0:01:12.9]} 25. Bxd7
{[%clk 0:02:16.5]} 25... Rxd7 {[%clk 0:01:12.5]} 26. Qf5 {[%clk 0:02:16.5]}
26... Rhd8 {[%clk 0:01:05.1]} 27. dxc5 {[%clk 0:02:08.7]} 27... Bh2+ {[%clk
0:01:04.7]} 28. Kxh2 {[%clk 0:02:07.4]} 28... Rxd5 {[%clk 0:01:05.6]} 29. Qxf7
{[%clk 0:02:07.1]} 29... Qxb5 {[%clk 0:01:03.4]} 30. c6 {[%clk 0:02:04.8]} 30...
Rc8 {[%clk 0:00:49.7]} 31. Rab1 {[%clk 0:02:04.2]} 31... Rf5 {[%clk 0:00:45.2]}
32. Qxb7+ {[%clk 0:01:47.6]} 32... Qxb7 {[%clk 0:00:42.7]} 33. Rxb7+ {[%clk
0:01:48.5]} 33... Ka8 {[%clk 0:00:42.9]} 34. Rb2 {[%clk 0:01:49.1]} 34... Rf6
{[%clk 0:00:39.3]} 35. c7 {[%clk 0:01:49]} 35... Rf7 {[%clk 0:00:37.8]} 36. Rbc2
{[%clk 0:01:49.5]} 36... Kb7 {[%clk 0:00:37.5]} 37. f3 {[%clk 0:01:49.4]} 37...
a5 {[%clk 0:00:35.2]} 38. e4 {[%clk 0:01:49.8]} 38... a4 {[%clk 0:00:33.3]} 39.
Rb1+ {[%clk 0:01:50]} 39... Ka6 {[%clk 0:00:32.3]} 40. Rc4 {[%clk 0:01:49.5]}
40... Ka5 {[%clk 0:00:29.7]} 41. Rc5+ {[%clk 0:01:49.8]} 41... Ka6 {[%clk
0:00:29.9]} 42. Rc6+ {[%clk 0:01:50.5]} 42... Ka5 {[%clk 0:00:29.4]} 43. Rcb6
{[%clk 0:01:51]} 1-0

[Event "Late-Titled-Tuesday-Blitz-September-19-2023"]
[Site "Chess.com"]
[Date "2023.09.19"]
[Round "1"]
[White "filipluczak05"]
[Black "K_A_S_T_O_R"]
[Result "0-1"]
[WhiteElo "2489"]
[BlackElo "2930"]
[TimeControl "180+1"]
[EndTime "14:05:32 PDT"]
[Termination "K_A_S_T_O_R won by resignation"]

1. Nf3 {[%clk 0:02:55.5]} 1... Nf6 {[%clk 0:02:57.8]} 2. e3 {[%clk 0:02:51.5]}
2... g6 {[%clk 0:02:57.3]} 3. d4 {[%clk 0:02:47.4]} 3... Bg7 {[%clk 0:02:57.6]}
4. Be2 {[%clk 0:02:47.1]} 4... O-O {[%clk 0:02:58.1]} 5. O-O {[%clk 0:02:47.4]}
5... d6 {[%clk 0:02:54.2]} 6. Nc3 {[%clk 0:02:42.6]} 6... Nbd7 {[%clk
0:02:53.4]} 7. e4 {[%clk 0:02:42.6]} 7... e5 {[%clk 0:02:53.3]} 8. dxe5 {[%clk
0:02:41.8]} 8... dxe5 {[%clk 0:02:52.9]} 9. Re1 {[%clk 0:02:41.3]} 9... b6
{[%clk 0:02:48.9]} 10. h3 {[%clk 0:02:36.6]} 10... Bb7 {[%clk 0:02:48.7]} 11.
Bc4 {[%clk 0:02:36.8]} 11... a6 {[%clk 0:02:47.2]} 12. a4 {[%clk 0:02:34.9]}
12... c6 {[%clk 0:02:46.7]} 13. Bg5 {[%clk 0:02:26.4]} 13... b5 {[%clk 0:02:45]}
14. Bb3 {[%clk 0:02:23.5]} 14... Qc7 {[%clk 0:02:39]} 15. Qe2 {[%clk 0:02:19.6]}
15... h6 {[%clk 0:02:37.8]} 16. Bh4 {[%clk 0:02:17.1]} 16... Nc5 {[%clk
0:02:37.2]} 17. Bg3 {[%clk 0:02:15.7]} 17... Nh5 {[%clk 0:02:35.6]} 18. Bh2
{[%clk 0:02:13.5]} 18... Nxb3 {[%clk 0:02:25]} 19. cxb3 {[%clk 0:02:12.4]} 19...
Qe7 {[%clk 0:02:24.8]} 20. Red1 {[%clk 0:02:03.2]} 20... Rad8 {[%clk 0:02:24.5]}
21. Qe3 {[%clk 0:01:54.5]} 21... Nf4 {[%clk 0:02:12]} 22. Nxe5 {[%clk
0:01:39.8]} 22... Nxg2 {[%clk 0:02:09.3]} 23. Kxg2 {[%clk 0:01:14.3]} 23... Bxe5
{[%clk 0:02:06.3]} 24. Bxe5 {[%clk 0:01:14.9]} 24... Qxe5 {[%clk 0:02:06.6]} 25.
Qxh6 {[%clk 0:01:15.8]} 25... b4 {[%clk 0:02:03.1]} 26. Rxd8 {[%clk 0:01:04.4]}
26... Rxd8 {[%clk 0:02:01.8]} 27. Qh4 {[%clk 0:01:04.7]} 27... g5 {[%clk
0:01:52]} 28. Qg3 {[%clk 0:00:43.7]} 28... Qxg3+ {[%clk 0:01:50.9]} 29. fxg3
{[%clk 0:00:41.5]} 29... Rd2+ {[%clk 0:01:49]} 30. Kf3 {[%clk 0:00:41.6]} 30...
bxc3 {[%clk 0:01:49]} 31. bxc3 {[%clk 0:00:42.5]} 31... Rd3+ {[%clk 0:01:47.9]}
32. Kg4 {[%clk 0:00:43.1]} 32... Bc8+ {[%clk 0:01:48.2]} 33. Kxg5 {[%clk
0:00:42.8]} 33... Rxg3+ {[%clk 0:01:48.8]} 34. Kf6 {[%clk 0:00:43.4]} 34... Rxc3
{[%clk 0:01:43.8]} 35. Rd1 {[%clk 0:00:41.4]} 35... Be6 {[%clk 0:01:36.6]} 36.
Rg1+ {[%clk 0:00:35.2]} 36... Kh7 {[%clk 0:01:32.2]} 37. Rg7+ {[%clk 0:00:35.4]}
37... Kh6 {[%clk 0:01:29.8]} 38. Rg3 {[%clk 0:00:34.9]} 38... Rxg3 {[%clk
0:01:29.3]} 0-1